[Event "NJSK 2018 Jeugd B"]
[Site "Assen, Netherlands"]
[Date "2018.05.05"]
[Round "7.7"]
[White "Achuthan, Dylan"]
[Black "Ypma, Jord"]
[Result "1/2-1/2"]
[TimeControl "40/90m+30m+30sec/move"]
[WhiteElo "1673"]
[BlackElo "1737"]

1. e4 {[%clk 01:30:57]} {[%emt 00:00:10]} c5 {[%clk 01:30:45]} {[%emt
00:00:55]} 2. Nf3 {[%clk 01:31:21]} {[%emt 00:00:11]} g6 {[%clk 01:30:44]}
{[%emt 00:00:46]} 3. c3 {[%clk 01:31:46]} {[%emt 00:00:07]} Bg7 {[%clk
01:31:00]} {[%emt 00:00:13]} 4. d4 {[%clk 01:32:09]} {[%emt 00:00:07]} cxd4
{[%clk 01:31:00]} {[%emt 00:00:36]} 5. cxd4 {[%clk 01:32:37]} {[%emt 00:00:02]}
d5 {[%clk 01:31:23]} {[%emt 00:00:14]} 6. e5 {[%clk 01:32:38]} {[%emt
00:00:29]} Nc6 {[%clk 01:31:16]} {[%emt 00:00:36]} 7. Nc3 {[%clk 01:32:49]}
{[%emt 00:00:28]} Nh6 {[%clk 01:30:13]} {[%emt 00:01:41]} 8. Bd3 {[%clk
01:26:40]} {[%emt 00:05:00]} Bg4 {[%clk 01:29:55]} {[%emt 00:00:47]} 9. Be3
{[%clk 01:23:02]} {[%emt 00:04:08]} e6 {[%clk 01:09:03]} {[%emt 00:21:22]} 10.
Qd2 {[%clk 01:12:00]} {[%emt 00:11:33]} Nf5 {[%clk 01:06:56]} {[%emt 00:02:36]}
11. Bxf5 {[%clk 01:05:56]} {[%emt 00:06:34]} Bxf5 {[%clk 01:07:05]} {[%emt
00:00:20]} 12. O-O {[%clk 01:04:02]} {[%emt 00:02:25]} O-O {[%clk 01:06:40]}
{[%emt 00:00:57]} 13. Ne1 {[%clk 01:00:20]} {[%emt 00:04:09]} f6 {[%clk
01:04:12]} {[%emt 00:02:59]} 14. f4 {[%clk 00:57:58]} {[%emt 00:02:53]} g5
{[%clk 01:03:05]} {[%emt 00:01:36]} 15. g3 {[%clk 00:54:36]} {[%emt 00:03:52]}
h6 {[%clk 00:59:58]} {[%emt 00:03:36]} 16. Nd3 {[%clk 00:52:05]} {[%emt
00:03:03]} 1/2-1/2

[Event "NJSK 2018 Jeugd B"]
[Site "Assen, Netherlands"]
[Date "2018.05.05"]
[Round "7.8"]
[White "Gevorkjan, Lewon"]
[Black "Noordenbos, Daan"]
[Result "1/2-1/2"]
[TimeControl "40/90m+30m+30sec/move"]
[WhiteElo "1821"]
[BlackElo "1763"]

1. Nf3 {[%clk 01:30:57]} {[%emt 00:00:09]} Nf6 {[%clk 01:30:52]} {[%emt
00:00:43]} 2. e3 {[%clk 01:31:23]} {[%emt 00:00:09]} g6 {[%clk 01:31:12]}
{[%emt 00:00:14]} 3. b3 {[%clk 01:31:24]} {[%emt 00:00:42]} Bg7 {[%clk
01:31:35]} {[%emt 00:00:07]} 4. Bb2 {[%clk 01:31:50]} {[%emt 00:00:06]} O-O
{[%clk 01:31:58]} {[%emt 00:00:06]} 5. c4 {[%clk 01:32:11]} {[%emt 00:00:10]}
d6 {[%clk 01:32:12]} {[%emt 00:00:20]} 6. Nc3 {[%clk 01:32:16]} {[%emt
00:00:38]} b6 {[%clk 01:32:28]} {[%emt 00:00:13]} 7. Be2 {[%clk 01:32:28]}
{[%emt 00:00:14]} Bb7 {[%clk 01:32:48]} {[%emt 00:00:10]} 8. O-O {[%clk
01:32:49]} {[%emt 00:00:10]} Ne4 {[%clk 01:33:05]} {[%emt 00:00:14]} 9. Qc2
{[%clk 01:33:09]} {[%emt 00:00:13]} Nxc3 {[%clk 01:33:27]} {[%emt 00:00:12]} 10.
Bxc3 {[%clk 01:33:38]} {[%emt 00:00:03]} e5 {[%clk 01:33:47]} {[%emt 00:00:14]}
11. d4 {[%clk 01:34:02]} {[%emt 00:00:08]} Qe7 {[%clk 01:34:10]} {[%emt
00:00:06]} 12. Rfe1 {[%clk 01:33:44]} {[%emt 00:00:52]} f5 {[%clk 01:34:14]}
{[%emt 00:00:25]} 13. Rad1 {[%clk 01:33:05]} {[%emt 00:00:56]} Nd7 {[%clk
01:33:18]} {[%emt 00:00:58]} 14. dxe5 {[%clk 01:31:03]} {[%emt 00:01:33]} Nxe5
{[%clk 01:33:19]} {[%emt 00:00:29]} 15. Nxe5 {[%clk 01:31:29]} {[%emt
00:00:04]} dxe5 {[%clk 01:33:39]} {[%emt 00:00:10]} 16. Rd2 {[%clk 01:29:47]}
{[%emt 00:02:13]} Rfd8 {[%clk 01:32:38]} {[%emt 00:01:30]} 17. Red1 {[%clk
01:30:00]} {[%emt 00:00:16]} Rxd2 {[%clk 01:32:56]} {[%emt 00:00:13]} 18. Rxd2
{[%clk 01:30:27]} {[%emt 00:00:04]} Rd8 {[%clk 01:33:17]} {[%emt 00:00:10]} 19.
Qd1 {[%clk 01:30:39]} {[%emt 00:00:18]} Rxd2 {[%clk 01:33:40]} {[%emt
00:00:07]} 20. Qxd2 {[%clk 01:31:05]} {[%emt 00:00:03]} Qd6 {[%clk 01:32:21]}
{[%emt 00:01:49]} 21. Qb2 {[%clk 01:29:46]} {[%emt 00:01:50]} Qe7 {[%clk
01:30:46]} {[%emt 00:02:04]} 22. Bf1 {[%clk 01:27:34]} {[%emt 00:02:42]} c5
{[%clk 01:24:16]} {[%emt 00:06:59]} 23. g3 {[%clk 01:25:47]} {[%emt 00:02:17]}
e4 {[%clk 01:20:23]} {[%emt 00:04:27]} 24. Bxg7 {[%clk 01:25:25]} {[%emt
00:00:48]} Qxg7 {[%clk 01:20:42]} {[%emt 00:00:11]} 25. Qa3 {[%clk 01:25:50]}
{[%emt 00:00:05]} Bc6 {[%clk 01:20:20]} {[%emt 00:00:52]} 26. b4 {[%clk
01:26:03]} {[%emt 00:00:18]} cxb4 {[%clk 01:19:40]} {[%emt 00:01:09]} 27. Qxb4
{[%clk 01:26:07]} {[%emt 00:00:26]} Qf8 {[%clk 01:20:01]} {[%emt 00:00:10]} 28.
Qd2 {[%clk 01:25:51]} {[%emt 00:00:47]} Qf6 {[%clk 01:20:01]} {[%emt 00:00:28]}
29. Qc1 {[%clk 01:25:33]} {[%emt 00:00:48]} Qe7 {[%clk 01:19:52]} {[%emt
00:00:42]} 30. Qc3 {[%clk 01:25:19]} {[%emt 00:00:40]} Qd6 {[%clk 01:18:29]}
{[%emt 00:01:53]} 31. Qb3 {[%clk 01:24:52]} {[%emt 00:00:58]} Qc5 {[%clk
01:18:45]} {[%emt 00:00:13]} 32. Qd1 {[%clk 01:24:27]} {[%emt 00:00:55]} Qe7
{[%clk 01:17:11]} {[%emt 00:02:04]} 33. Qd4 {[%clk 01:24:42]} {[%emt 00:00:15]}
Qd7 {[%clk 01:17:16]} {[%emt 00:00:25]} 34. Qe5 {[%clk 01:24:20]} {[%emt
00:00:52]} Kf7 {[%clk 01:14:49]} {[%emt 00:02:56]} 35. Qh8 {[%clk 01:22:35]}
{[%emt 00:02:06]} Ke6 {[%clk 01:14:38]} {[%emt 00:00:50]} 36. Qb8 {[%clk
01:20:54]} {[%emt 00:02:12]} Qb7 {[%clk 01:12:10]} {[%emt 00:02:58]} 37. Qg8+
{[%clk 01:20:38]} {[%emt 00:00:47]} Qf7 {[%clk 01:12:12]} {[%emt 00:00:28]} 38.
Qc8+ {[%clk 01:20:49]} {[%emt 00:00:18]} Qd7 {[%clk 01:11:55]} {[%emt
00:00:44]} 39. Qa6 {[%clk 01:21:05]} {[%emt 00:00:16]} Qb7 {[%clk 01:07:18]}
{[%emt 00:05:07]} 40. Qa3 {[%clk 01:21:11]} {[%emt 00:00:24]} Qe7 {[%clk
01:07:34]} {[%emt 00:00:13]} 41. Qc1 {[%clk 01:20:00]} {[%emt 00:01:41]} Kd7
{[%clk 01:06:14]} {[%emt 00:01:49]} 42. Qd1+ {[%clk 01:18:43]} {[%emt
00:01:48]} Qd6 {[%clk 01:03:46]} {[%emt 00:02:59]} 43. Qb3 {[%clk 01:19:11]}
{[%emt 00:00:02]} Kc7 {[%clk 01:00:52]} {[%emt 00:03:22]} 44. Qc3 {[%clk
01:16:46]} {[%emt 00:02:57]} Qe7 {[%clk 01:00:52]} {[%emt 00:00:29]} 45. Qd4
{[%clk 01:16:05]} {[%emt 00:01:10]} Qd6 {[%clk 01:00:27]} {[%emt 00:00:57]} 46.
Qg7+ {[%clk 01:13:42]} {[%emt 00:02:52]} Qd7 {[%clk 01:00:30]} {[%emt
00:00:27]} 47. Qf8 {[%clk 01:14:04]} {[%emt 00:00:07]} Qd6 {[%clk 01:00:39]}
{[%emt 00:00:22]} 48. Qg8 {[%clk 01:12:50]} {[%emt 00:01:39]} Qe7 {[%clk
01:00:43]} {[%emt 00:00:32]} 49. Qh8 {[%clk 01:12:37]} {[%emt 00:00:43]} Qd7
{[%clk 01:00:20]} {[%emt 00:00:53]} 50. h4 {[%clk 01:12:45]} {[%emt 00:00:21]}
Qe7 {[%clk 00:59:05]} {[%emt 00:01:51]} 51. a4 {[%clk 01:04:03]} {[%emt
00:09:06]} Qd7 {[%clk 00:58:16]} {[%emt 00:01:19]} 52. a5 {[%clk 01:02:38]}
{[%emt 00:01:55]} bxa5 {[%clk 00:57:30]} {[%emt 00:01:17]} 53. Qc3 {[%clk
01:03:04]} {[%emt 00:00:03]} a4 {[%clk 00:57:27]} {[%emt 00:00:32]} 54. c5
{[%clk 01:02:29]} {[%emt 00:01:06]} Kb8 {[%clk 00:47:23]} {[%emt 00:10:37]} 55.
Ba6 {[%clk 00:59:27]} {[%emt 00:03:25]} Bb7 {[%clk 00:40:46]} {[%emt 00:07:10]}
56. Qb4 {[%clk 00:56:36]} {[%emt 00:03:47]} Qd1+ {[%clk 00:39:44]} {[%emt
00:01:06]} 57. Kg2 {[%clk 00:57:03]} {[%emt 00:00:03]} Qb3 {[%clk 00:39:45]}
{[%emt 00:00:28]} 58. Qa5 {[%clk 00:57:09]} {[%emt 00:00:24]} Bxa6 {[%clk
00:39:24]} {[%emt 00:00:51]} 59. Qxa6 {[%clk 00:57:33]} {[%emt 00:00:04]} Qd1
{[%clk 00:38:34]} {[%emt 00:01:22]} 60. c6 {[%clk 00:55:07]} {[%emt 00:03:00]}
Qb3 {[%clk 00:38:36]} {[%emt 00:00:25]} 61. Qa5 {[%clk 00:55:01]} {[%emt
00:00:36]} Qb6 {[%clk 00:38:16]} {[%emt 00:00:53]} 62. Qe5+ {[%clk 00:53:57]}
{[%emt 00:01:30]} Qc7 {[%clk 00:38:07]} {[%emt 00:00:39]} 63. Qb5+ {[%clk
00:53:50]} {[%emt 00:00:38]} Qb6 {[%clk 00:38:29]} {[%emt 00:00:08]} 64. Qe5+
{[%clk 00:46:43]} {[%emt 00:07:37]} Qc7 {[%clk 00:38:49]} {[%emt 00:00:10]} 65.
Qh8+ {[%clk 00:47:12]} {[%emt 00:00:01]} Qc8 {[%clk 00:39:03]} {[%emt
00:00:16]} 66. c7+ {[%clk 00:47:30]} {[%emt 00:00:12]} Kb7 {[%clk 00:37:51]}
{[%emt 00:01:42]} 67. Qxh7 {[%clk 00:47:54]} {[%emt 00:00:05]} Qe6 {[%clk
00:38:00]} {[%emt 00:00:21]} 68. Qh8 {[%clk 00:46:18]} {[%emt 00:02:07]} Kxc7
{[%clk 00:37:50]} {[%emt 00:00:41]} 69. Qd4 {[%clk 00:46:46]} Qa6 {[%clk
00:37:19]} {[%emt 00:01:01]} 70. Qg7+ {[%clk 00:47:08]} {[%emt 00:00:08]} Kd8
{[%clk 00:37:19]} {[%emt 00:00:27]} 71. Qf8+ {[%clk 00:47:31]} {[%emt
00:00:09]} Kc7 {[%clk 00:37:03]} {[%emt 00:00:45]} 72. Qf7+ {[%clk 00:47:54]}
{[%emt 00:00:07]} Kd8 {[%clk 00:37:11]} {[%emt 00:00:21]} 73. Qf8+ {[%clk
00:48:10]} {[%emt 00:00:17]} 1/2-1/2